bitfinex-derivatives/quotes_ETHF0:USTF0_20250327
["timestamp","ask_amount","ask_price","bid_price","bid_amount"]
[1743065630577,0.99513722,2024.6,2024.5,0.98777]
[1743065630784,0.00740722,2024.6,2024.5,0.98777]
[1743065631186,0.00740722,2024.6,2024.5,1.69567]
[1743065631676,0.99513722,2024.6,2024.5,1.69567]
[1743065631883,0.00740722,2024.6,2024.5,1.69567]
[1743065632076,0.99513722,2024.6,2024.5,1.69567]
[1743065632488,0.00740722,2024.6,2024.5,1.69567]
[1743065633177,0.99513722,2024.6,2024.5,1.69567]
[1743065633377,0.00740722,2024.6,2024.5,1.69567]
[1743065633583,0.99513722,2024.6,2024.5,1.69567]
[1743065634080,0.99513722,2024.6,2024.5,0.98777]
[1743065634477,0.00740722,2024.6,2024.5,0.98777]
[1743065634881,0.99513722,2024.6,2024.5,0.98777]
[1743065637887,0.00740722,2024.6,2024.5,0.98777]
[1743065642689,0.99513722,2024.6,2024.5,0.98777]
[1743065644092,0.00740722,2024.6,2024.5,0.98777]
[1743065644494,0.99513722,2024.6,2024.5,0.98777]
[1743065645192,0.00740722,2024.6,2024.5,0.98777]
[1743065645396,0.99513722,2024.6,2024.5,0.98777]
[1743065647502,0.99513722,2024.6,2024.5,41.78777]
[1743065650604,0.00740722,2024.6,2024.5,41.78777]
[1743065651295,0.99513722,2024.6,2024.5,0.98777]
[1743065651708,0.00740722,2024.6,2024.5,0.98777]
[1743065651904,0.99513722,2024.6,2024.5,0.98777]
[1743065652504,0.00740722,2024.6,2024.5,0.98777]
[1743065653202,0.00740722,2024.6,2024.5,41.78777]
[1743065654109,0.99513722,2024.6,2024.5,41.78777]
[1743065654305,0.00740722,2024.6,2024.5,41.78777]
[1743065657115,0.99513722,2024.6,2024.5,41.78777]
[1743065658015,0.00740722,2024.6,2024.5,41.78777]
[1743065658413,0.99513722,2024.6,2024.5,41.78777]
[1743065658714,0.00740722,2024.6,2024.5,41.78777]
[1743065658901,0.99513722,2024.6,2024.5,41.78777]
[1743065659615,0.00740722,2024.6,2024.5,41.78777]
[1743065661314,0.00740722,2024.6,2024.5,42.25777]
[1743065661510,0.00740722,2024.6,2024.5,41.78777]
[1743065662318,0.00740722,2024.6,2024.5,42.43577]
[1743065663217,0.00740722,2024.6,2024.5,44.57577]
[1743065663519,0.00740722,2024.6,2024.5,42.43577]
[1743065663913,0.00740722,2024.6,2024.5,44.73577]
[1743065664108,0.00740722,2024.6,2024.5,42.43577]
[1743065664314,0.00740722,2024.6,2024.5,0.98777]
[1743065664717,0.65630722,2024.6,2024.5,0.98777]
[1743065664914,1.36470722,2024.6,2024.5,0.98777]
[1743065667320,2.35243722,2024.6,2024.5,0.98777]
[1743065667515,1.36470722,2024.6,2024.5,0.98777]
[1743065667717,2.35243722,2024.6,2024.5,0.98777]
[1743065668117,1.36470722,2024.6,2024.5,0.98777]
[1743065669423,2.35243722,2024.6,2024.5,0.98777]
[1743065669723,1.36470722,2024.6,2024.5,0.98777]
[1743065671024,2.74480722,2024.6,2024.5,0.98777]
[1743065671421,3.73253722,2024.6,2024.5,0.98777]
[1743065671622,2.74480722,2024.6,2024.5,0.98777]
[1743065672520,3.73253722,2024.6,2024.5,0.98777]
[1743065672723,2.74480722,2024.6,2024.5,0.98777]
[1743065673823,2.74480722,2024.6,2024.5,2.33167]
[1743065675526,2.03640722,2024.6,2024.5,2.33167]
[1743065676026,2.03640722,2024.6,2024.5,43.13167]
[1743065679428,1.38750722,2024.6,2024.5,43.13167]
[1743065680130,1.38750722,2024.6,2024.5,45.43167]
[1743065680329,1.38750722,2024.6,2024.5,43.13167]
[1743065681331,1.38750722,2024.6,2024.5,2.33167]
[1743065681728,1.38750722,2024.6,2024.5,43.13167]
[1743065683123,1.38750722,2024.6,2024.5,45.47167]
[1743065683431,1.38750722,2024.6,2024.5,43.13167]
[1743065684326,1.38750722,2024.6,2024.5,45.37167]
[1743065685627,1.38750722,2024.6,2024.5,43.13167]
[1743065685829,1.38750722,2024.6,2024.5,45.43167]
[1743065686018,1.38750722,2024.6,2024.5,43.13167]
[1743065686728,1.38750722,2024.6,2024.5,45.28167]
[1743065686927,1.38750722,2024.6,2024.5,43.13167]
[1743065693333,1.38750722,2024.6,2024.5,43.58167]
[1743065693534,1.38750722,2024.6,2024.5,45.16167]
[1743065693732,1.38750722,2024.6,2024.5,43.13167]
[1743065694528,1.38750722,2024.6,2024.5,45.29167]
[1743065694934,0.98752,2025.1,2025.0,0.98748]
[1743065695139,2.32912,2025.1,2025.0,0.98748]
[1743065695337,1.3416,2025.1,2025.0,0.98748]
[1743065695929,2.32908,2025.1,2025.0,0.98748]
[1743065696435,3.70798,2025.1,2025.0,0.98748]
[1743065697334,3.70798,2025.1,2025.0,41.78748]
[1743065698032,3.45642,2025.0,2024.8,0.00740722]
[1743065698239,2.35608,2025.0,2024.9,0.98757]
[1743065698425,0.98758,2024.9,2024.8,0.99500722]
[1743065701138,0.98758,2024.9,2024.8,0.00740722]
[1743065702542,0.98758,2024.9,2024.8,0.99503722]
[1743065702736,4.19538,2024.9,2024.8,0.00740722]
[1743065702936,4.19538,2024.9,2024.8,0.99503722]
[1743065703344,4.19538,2024.9,2024.8,0.00740722]
[1743065703536,4.19538,2024.9,2024.8,0.99503722]
[1743065703734,4.19538,2024.9,2024.8,0.00740722]
[1743065707744,0.98758,2024.9,2024.8,0.00740722]
[1743065707940,0.98758,2024.9,2024.8,0.99503722]
[1743065708145,0.98758,2024.9,2024.8,0.00740722]
[1743065708742,2.31948,2024.9,2024.8,0.00740722]
[1743065711651,2.31948,2024.9,2024.8,0.99503722]
[1743065714548,1.3319,2024.9,2024.8,4.20283722]
[1743065714747,0.649,2025.1,2025.0,0.98753]
[1743065714949,1.9994,2025.1,2025.0,0.98753]
[1743065715142,2.98688,2025.1,2025.0,0.98753]
[1743065715452,2.98688,2025.1,2025.0,2.40543]
[1743065715646,2.98688,2025.1,2025.0,0.98753]
[1743065716350,2.98688,2025.1,2025.0,2.40543]
[1743065720145,1.9994,2025.1,2025.0,2.40543]
[1743065720546,0.00740722,2025.3,2025.2,0.98743]
[1743065720748,1.31650722,2025.3,2025.2,4.19523]
[1743065720942,1.31650722,2025.3,2025.2,5.99043]
[1743065721250,1.31650722,2025.3,2025.2,6.24793]
[1743065723347,1.31650722,2025.3,2025.2,6.69793]
[1743065723551,1.31650722,2025.3,2025.2,6.24793]
[1743065724056,1.31650722,2025.3,2025.2,6.68793]
[1743065724255,1.31650722,2025.3,2025.2,6.24793]
[1743065724555,1.31650722,2025.3,2025.2,6.62793]
[1743065724756,1.31650722,2025.3,2025.2,6.24793]
[1743065725658,1.31650722,2025.3,2025.2,6.71793]
[1743065725955,1.31650722,2025.3,2025.2,6.24793]
[1743065726157,1.31650722,2025.3,2025.2,6.68793]
[1743065726357,1.31650722,2025.3,2025.2,6.24793]
[1743065728755,1.31650722,2025.3,2025.2,6.69793]
[1743065728957,1.31650722,2025.3,2025.2,6.24793]
[1743065734059,1.31650722,2025.3,2025.2,3.04013]
[1743065737565,2.71870722,2025.3,2025.2,3.04013]
[1743065737956,1.31650722,2025.3,2025.2,6.24793]
[1743065738161,1.31650722,2025.3,2025.2,6.65793]
[1743065738355,1.31650722,2025.3,2025.2,8.23793]
[1743065738561,1.31650722,2025.3,2025.2,6.24793]
[1743065739765,1.31650722,2025.3,2025.2,6.65793]
[1743065740267,1.31650722,2025.3,2025.2,6.24793]
[1743065740467,0.00740722,2025.3,2025.2,11.67793]
[1743065749672,1.35,2025.5,2025.4,0.98734]
[1743065750069,1.35,2025.5,2025.4,2.34754]
[1743065754469,1.35,2025.5,2025.4,5.55534]
[1743065758171,1.35,2025.5,2025.4,4.19514]
[1743065758372,2.33729,2025.5,2025.4,0.98734]
[1743065758561,1.35,2025.5,2025.4,0.98734]
[1743065759172,2.33729,2025.5,2025.4,0.98734]
[1743065760779,1.35,2025.5,2025.4,0.98734]
[1743065763076,1.35,2025.5,2025.4,3.10134]
[1743065763480,1.35,2025.5,2025.4,45.91134]
[1743065763677,1.35,2025.5,2025.4,46.17134]
[1743065763874,1.35,2025.5,2025.4,43.90134]
[1743065765479,1.35,2025.5,2025.4,46.03134]
[1743065765778,1.35,2025.5,2025.4,43.90134]
[1743065766881,1.35,2025.5,2025.4,46.13134]
[1743065767383,1.35,2025.5,2025.4,43.90134]
[1743065767685,1.35,2025.5,2025.4,46.23134]
[1743065768070,1.35,2025.5,2025.4,43.90134]
[1743065768780,1.35,2025.5,2025.4,46.10134]
[1743065768978,1.35,2025.5,2025.4,43.90134]
[1743065769177,1.35,2025.5,2025.4,49.11434]
[1743065769381,1.35,2025.5,2025.4,47.05434]
[1743065769976,1.35,2025.5,2025.4,46.37104]
[1743065770689,1.35,2025.5,2025.4,48.32104]
[1743065771179,1.35,2025.5,2025.4,48.51104]
[1743065771689,0.00740722,2025.7,2025.6,0.98724]
[1743065771882,0.00740722,2025.7,2025.6,4.19504]
[1743065772077,0.00740722,2025.7,2025.6,6.22504]
[1743065772384,0.00740722,2025.7,2025.6,48.52834]
[1743065773481,0.00740722,2025.7,2025.6,46.70834]
[1743065773781,0.00740722,2025.7,2025.6,46.88834]
[1743065773986,0.00740722,2025.7,2025.6,46.42834]
[1743065774376,0.00740722,2025.7,2025.6,48.39834]
[1743065774581,1.3891,2025.8,2025.6,48.39834]
[1743065774582,1.3891,2025.8,2025.7,0.98719]
[1743065774782,1.3891,2025.8,2025.7,12.57349]
[1743065775284,1.3891,2025.8,2025.7,53.37349]
[1743065778295,1.3891,2025.8,2025.7,56.58129]
[1743065782294,0.68803241,2026.0,2025.9,0.98709]
[1743065782497,0.68803241,2026.0,2025.9,2.90709]
[1743065782686,0.68803241,2026.0,2025.9,0.98709]
[1743065783598,0.68803241,2026.0,2025.9,2.40159]
[1743065783987,1.37513241,2026.0,2025.9,2.85159]
[1743065784296,1.37513241,2026.0,2025.9,2.40159]
[1743065784691,1.37513241,2026.0,2025.9,2.83159]
[1743065785093,1.37513241,2026.0,2025.9,2.40159]
[1743065787888,1.37513241,2026.0,2025.9,0.98709]
[1743065788497,1.37513241,2026.0,2025.9,2.39079]
[1743065789996,2.73003241,2026.0,2025.9,2.39079]
[1743065808508,2.04293241,2026.0,2025.9,2.39079]
[1743065809406,2.75993241,2026.0,2025.9,2.39079]
[1743065813417,3.74697241,2026.0,2025.9,2.39079]
[1743065813609,2.75993241,2026.0,2025.9,2.39079]
[1743065816614,3.74697241,2026.0,2025.9,2.39079]
[1743065816813,2.75993241,2026.0,2025.9,2.39079]
[1743065817210,2.75993241,2026.0,2025.7,1.64557]
[1743065817415,0.98714,2025.8,2025.7,1.64557]
[1743065820225,0.98714,2025.8,2025.7,0.98717]
[1743065820524,2.30103,2025.9,2025.8,0.98714]
[1743065826731,1.3139,2025.9,2025.8,0.98714]
[1743065826932,2.30099,2025.9,2025.8,0.98714]
[1743065827928,1.3139,2025.9,2025.8,0.98714]
[1743065828836,1.3139,2025.9,2025.8,2.34884]
[1743065832732,1.3139,2025.9,2025.8,2.77884]
[1743065832930,1.3139,2025.9,2025.8,2.34884]
[1743065835141,1.3139,2025.9,2025.8,2.73884]
[1743065835339,1.3139,2025.9,2025.8,2.34884]
[1743065836141,1.3139,2025.9,2025.8,4.35884]
[1743065836341,1.3139,2025.9,2025.8,2.34884]
[1743065836536,1.3139,2025.9,2025.8,4.41884]
[1743065836737,1.3139,2025.9,2025.8,2.34884]
[1743065840346,1.3139,2025.9,2025.8,2.81884]
[1743065840547,1.3139,2025.9,2025.8,2.34884]
[1743065841449,1.3139,2025.9,2025.8,2.81884]
[1743065841847,1.3139,2025.9,2025.8,4.34884]
[1743065842541,1.3139,2025.9,2025.8,2.34884]
[1743065842742,0.00483241,2026.0,2025.9,0.98709]
[1743065843048,1.37743241,2026.0,2025.9,5.60749]
[1743065844454,1.37743241,2026.0,2025.9,8.75749]
[1743065844656,1.37743241,2026.0,2025.9,10.98749]
[1743065845053,1.37743241,2026.0,2025.9,8.75749]
[1743065845248,0.00483241,2026.0,2025.9,14.54749]
[1743065845652,1.35493241,2026.0,2025.9,14.54749]
[1743065846152,0.00483241,2026.0,2025.9,14.54749]
[1743065846357,0.00483241,2026.0,2025.9,15.64884813]
[1743065849659,0.00483241,2026.0,2025.9,15.26029]
[1743065856164,0.00483241,2026.0,2025.9,12.05249]
[1743065856363,0.00483241,2026.0,2025.9,15.26029]
[1743065857871,0.00483241,2026.0,2025.9,15.93509]
[1743065858971,1.30243241,2026.0,2025.9,15.93509]
[1743065860467,1.30243241,2026.0,2025.9,15.22229]
[1743065864276,3.2078,2026.7,2025.9,15.22229]
[1743065864277,4.19437,2027.0,2026.6,0.98675]
[1743065864475,0.7148,2026.8,2026.7,0.9867]
[1743065864877,1.70145,2026.8,2026.7,41.7867]
[1743065865070,0.7148,2026.8,2026.7,41.7867]
[1743065867379,1.3968,2026.8,2026.7,41.7867]
[1743065869385,2.7427,2026.8,2026.7,41.7867]
[1743065869782,3.72935,2026.8,2026.7,41.7867]
[1743065870378,3.72935,2026.8,2026.7,0.9867]
[1743065873685,3.2078,2027.4,2026.7,8.3868]
[1743065873891,0.6748,2027.3,2027.2,0.98646]
[1743065874592,1.66121,2027.3,2027.2,0.98646]
[1743065875492,0.6748,2027.3,2027.2,0.98646]
[1743065876890,0.6748,2027.3,2027.2,2.37786]
[1743065878296,0.6673,2027.5,2027.4,0.98636]
[1743065878886,2.0596,2027.5,2027.4,2.28416]
[1743065879290,3.04591,2027.5,2027.4,0.98636]
[1743065882492,1.3923,2027.5,2027.4,0.98636]
[1743065882897,1.3923,2027.5,2027.4,2.32056]
[1743065890107,1.3923,2027.5,2027.4,2.99936]
[1743065890512,4.90275,2027.7,2027.6,0.98626]
[1743065890996,1.69495,2027.7,2027.6,0.98626]
[1743065892006,3.08695,2027.7,2027.6,0.98626]
[1743065892212,3.08692,2027.7,2027.6,0.98626]
[1743065898412,3.08692,2027.7,2027.5,1.346]
[1743065898413,0.98626,2027.6,2027.5,1.346]
[1743065898709,5.61836,2027.6,2027.5,2.33231]
[1743065900418,5.61836,2027.6,2027.5,1.346]
[1743065900615,0.98637,2027.5,2027.4,0.98633]
[1743065900818,2.98557,2027.5,2027.4,0.98633]
[1743065902614,0.98636,2027.4,2027.3,2.29787]
[1743065902913,2.93856,2027.4,2027.3,2.29787]
[1743065903226,2.93856,2027.4,2027.3,1.3115]
[1743065903408,0.98651,2027.1,2027.0,3.2078]
[1743065904214,0.98661,2026.9,2026.8,0.98661]
[1743065904615,0.98661,2026.9,2026.8,2.32391]
[1743065904812,0.98661,2026.9,2026.8,1.3373]
[1743065905222,0.9867,2026.7,2026.6,41.78673]
[1743065906222,0.9867,2026.7,2026.6,40.8]
[1743065906621,2.4225,2026.7,2026.6,42.1037]
[1743065907515,2.4225,2026.7,2026.6,43.09045]
[1743065909923,1.4358,2026.7,2026.6,43.09045]
[1743065910617,0.98666,2026.8,2026.7,0.9867]
[1743065910818,0.98666,2026.8,2026.7,2.3386]
[1743065911219,2.29026,2026.8,2026.7,2.3386]
[1743065911921,1.3036,2026.8,2026.7,2.3386]
[1743065912125,3.8586,2027.0,2026.9,0.98661]
[1743065912428,5.1636,2027.0,2026.9,0.98661]
[1743065912822,5.1636,2027.0,2026.9,2.29821]
[1743065913922,1.9558,2027.0,2026.9,2.29821]
[1743065916330,1.66261,2027.1,2027.0,0.98656]
[1743065916535,0.6761,2027.1,2027.0,2.32016]
[1743065916923,1.9826,2027.1,2027.0,2.32016]
[1743065917629,2.96911,2027.1,2027.0,2.32016]
[1743065918628,1.9826,2027.1,2027.0,2.32016]
[1743065919233,2.96911,2027.1,2027.0,2.32016]
[1743065926733,2.96911,2027.1,2027.0,1.3336]
[1743065927034,0.98666,2026.9,2026.8,0.98659]
[1743065927229,0.98666,2026.9,2026.8,2.41439]
[1743065927424,2.39266,2026.9,2026.8,2.41439]
[1743065927938,0.9867,2026.8,2026.7,0.98666]
[1743065928139,3.0907,2026.8,2026.7,0.98666]
[1743065928825,0.98675,2026.7,2026.6,0.98671]
[1743065929333,2.39275,2026.7,2026.6,43.21451]
[1743065934637,3.04695,2026.7,2026.6,43.21451]
[1743065940545,3.04695,2026.7,2026.6,2.41451]
[1743065940945,3.04695,2026.7,2026.6,43.21451]
[1743065948247,3.04695,2026.7,2026.6,1.4278]
[1743065949551,3.04695,2026.7,2026.6,2.41455]
[1743065949851,3.04695,2026.7,2026.6,1.4278]
[1743065950150,3.04695,2026.7,2026.6,2.41455]
[1743065950355,3.04695,2026.7,2026.6,1.4278]
[1743065951651,3.04695,2026.7,2026.6,2.41455]
[1743065952452,3.04695,2026.7,2026.6,1.4278]
[1743065953343,3.04695,2026.7,2026.6,2.41455]
[1743065957147,3.04695,2026.7,2026.6,1.4278]
[1743065958151,3.04695,2026.7,2026.6,2.41455]
[1743065958349,3.04695,2026.7,2026.6,1.4278]
[1743065959857,0.98699,2026.2,2026.1,0.98697]
[1743065960059,0.98699,2026.2,2026.1,1.69037]
[1743065960850,0.98694,2026.3,2026.2,0.98691]
[1743065961356,0.98694,2026.3,2026.2,2.40121]
[1743065961656,0.98694,2026.3,2026.2,1.4143]
[1743065961857,0.98694,2026.3,2026.2,2.40125]
[1743065962256,2.38024,2026.3,2026.2,2.40125]
[1743065963751,2.38024,2026.3,2026.2,1.4143]
[1743065963954,2.38024,2026.3,2026.2,2.40125]
[1743065969353,2.38024,2026.3,2026.2,1.4143]
[1743065969549,2.38024,2026.3,2026.2,2.40125]
[1743065972659,2.38024,2026.3,2026.2,1.4143]
[1743065973672,2.38024,2026.3,2026.2,2.40125]
[1743065979470,2.38024,2026.3,2026.2,1.4143]
[1743065981370,2.38024,2026.3,2026.2,2.40125]
[1743065981772,2.38024,2026.3,2026.2,1.4143]
[1743065982871,2.38024,2026.3,2026.2,2.40125]
[1743065983276,2.38024,2026.3,2026.2,1.4143]
[1743065983768,1.3933,2026.3,2026.2,2.40125]
[1743065983971,2.3802,2026.3,2026.2,2.40125]
[1743065984164,0.00740722,2026.4,2026.3,0.9869]
[1743065984367,0.99428722,2026.4,2026.3,1.3648]
[1743065984564,0.99428722,2026.4,2026.3,2.3517]
[1743065984767,2.38468722,2026.4,2026.3,2.3517]
[1743065984973,2.38468722,2026.4,2026.3,1.3648]
[1743065985878,2.38468722,2026.4,2026.3,2.3517]
[1743065986078,2.38468722,2026.4,2026.3,1.3648]
[1743065987872,2.38468722,2026.4,2026.3,2.3517]
[1743065988164,2.38468722,2026.4,2026.3,1.3648]
[1743065988576,2.38468722,2026.4,2026.3,2.3517]
[1743065992780,2.38468722,2026.4,2026.3,1.3648]
[1743065994277,2.38468722,2026.4,2026.3,2.3517]
[1743065994885,2.38468722,2026.4,2026.3,1.3648]
[1743065995188,2.38468722,2026.4,2026.3,2.3517]
[1743065996381,2.38468722,2026.4,2026.3,1.3648]
[1743065996785,2.38468722,2026.4,2026.3,2.3517]
[1743065999380,2.38468722,2026.4,2026.3,1.3648]
[1743066000375,0.99428722,2026.4,2026.3,0.9869]
[1743066008291,0.98695,2026.3,2026.2,0.98691]
[1743066016492,0.99426722,2026.4,2026.3,0.9869]
[1743066018584,0.99426722,2026.4,2026.3,1.6605]
[1743066022899,1.69666722,2026.4,2026.3,1.6605]
[1743066025100,1.69666722,2026.4,2026.2,0.98691]
[1743066025101,0.98695,2026.3,2026.2,0.98691]
[1743066025299,1.70385,2026.3,2026.2,0.98691]
[1743066027892,0.98695,2026.2,2026.1,1.69035]
[1743066030199,4.19475,2026.2,2025.9,0.00740722]
[1743066030400,0.98704,2026.0,2025.9,0.00740722]
[1743066030798,1.64514,2026.0,2025.9,0.00740722]
[1743066043702,0.98729,2025.6,2025.5,0.98727]
[1743066043909,0.98729,2025.6,2025.5,2.30027]
[1743066047913,0.98729,2025.6,2025.5,1.313]
[1743066048715,0.98729,2025.6,2025.5,2.30029]
[1743066048917,0.98729,2025.6,2025.5,1.64679]
[1743066049715,0.98729,2025.5,2025.4,40.8]
[1743066050013,0.98734,2025.4,2025.3,0.00740722]
[1743066050209,1.67264,2025.4,2025.3,0.00740722]
[1743066050408,1.67264,2025.4,2025.3,40.80740722]
[1743066051414,0.98748,2025.1,2025.0,0.98752]
[1743066051815,0.98748,2025.1,2025.0,40.8]
[1743066052126,0.98748,2025.1,2025.0,41.78753]
[1743066052320,1.69868,2025.1,2025.0,40.8]
[1743066052718,1.69868,2025.1,2025.0,41.78753]
[1743066054119,1.69868,2025.1,2025.0,40.8]
[1743066055217,0.98758,2024.9,2024.8,0.00740722]
[1743066055415,4.19538,2024.9,2024.8,0.00740722]
[1743066055911,0.98758,2024.9,2024.8,0.00740722]
[1743066058109,1.69873,2025.1,2024.8,0.00740722]
[1743066058421,0.00740722,2025.3,2025.2,0.98743]
[1743066058619,0.6539,2025.7,2025.6,0.98724]
[1743066059019,1.64109,2025.7,2025.6,0.98724]
[1743066059213,0.6539,2025.7,2025.6,41.78724]
[1743066060119,0.00740722,2025.9,2025.8,0.98714]
[1743066062518,3.21520722,2025.9,2025.7,0.98716]
[1743066062712,0.98714,2025.8,2025.7,0.98716]
[1743066063211,0.98719,2025.7,2025.6,0.9872]
[1743066063412,1.70259,2025.7,2025.6,0.9872]
[1743066064112,0.7154,2025.7,2025.6,0.9872]
[1743066064719,0.7154,2025.7,2025.5,0.98725]
[1743066065018,1.70263,2025.7,2025.6,0.98724]
[1743066065223,0.98725,2025.6,2025.5,0.98726]
[1743066065418,0.7154,2025.7,2025.3,3.9155]
[1743066065721,0.7154,2025.7,2025.5,0.98728]
[1743066065722,0.98727,2025.6,2025.5,0.98728]
[1743066066112,3.21520722,2025.9,2025.8,0.98714]
[1743066066313,0.00740722,2025.9,2025.8,0.98714]
[1743066067821,0.98717,2025.8,2025.6,0.98721]
[1743066068125,0.98722,2025.7,2025.4,3.8465]
[1743066068424,1.67782,2025.7,2025.6,0.98724]
[1743066068615,1.67782,2025.7,2025.5,0.98725]
[1743066068815,0.6906,2025.7,2025.4,0.7005]
[1743066069016,0.98729,2025.5,2025.4,1.68782]
[1743066069820,0.6906,2025.7,2025.4,1.68782]
[1743066069821,0.98727,2025.6,2025.4,1.68782]
[1743066070515,0.98724,2025.6,2025.4,1.68782]
[1743066070820,0.98724,2025.6,2025.5,0.98729]
[1743066071030,0.98724,2025.6,2025.4,0.7005]
[1743066071221,0.98724,2025.6,2025.4,1.68779]
[1743066071824,0.98729,2025.5,2025.4,0.7005]
[1743066072125,0.98729,2025.5,2025.4,1.68784]
[1743066073130,3.2078,2025.6,2025.4,1.68784]
[1743066073429,4.19508,2025.6,2025.5,0.98729]
[1743066074031,0.98729,2025.5,2025.4,1.6878]
[1743066074422,0.98729,2025.5,2025.4,1.68784]
[1743066074641,0.98729,2025.5,2025.4,0.98734]
[1743066074827,3.2078,2025.6,2025.2,41.4573]
[1743066075024,0.98732,2025.5,2025.4,0.98732]
[1743066076029,0.98738,2025.3,2025.2,41.78739]
[1743066076226,0.98738,2025.3,2025.2,40.8]
[1743066076432,3.2078,2025.3,2024.8,3.15340722]
[1743066076627,0.98752,2025.1,2024.8,3.80310722]
[1743066076826,0.98754,2025.0,2024.9,0.98755]
[1743066077022,0.98754,2025.0,2024.9,41.78755]
[1743066077629,0.98751,2025.1,2025.0,0.98752]
[1743066078228,0.98753,2025.0,2024.9,41.78755]
[1743066078525,0.7112,2025.2,2024.9,40.8]
[1743066078725,0.98752,2025.1,2025.0,0.98752]
[1743066079127,0.98753,2025.0,2024.9,41.78754]
[1743066079334,0.98752,2025.1,2025.0,0.98752]
[1743066083933,0.98753,2025.0,2024.9,40.8]
[1743066084338,0.98753,2025.0,2024.9,41.78758]
[1743066086038,0.98752,2025.1,2025.0,0.9875]
[1743066088445,0.7112,2025.2,2025.1,0.98748]
[1743066088645,4.19523,2025.3,2025.2,0.98743]
[1743066088837,3.2078,2025.3,2025.2,0.98743]
[1743066089144,3.2078,2025.7,2025.6,0.98724]
[1743066089435,0.99453722,2025.9,2025.8,0.98714]
[1743066089652,0.98719,2025.8,2025.7,0.98715]
[1743066089842,0.98725,2025.7,2025.6,0.9872]
[1743066090036,0.9873,2025.6,2025.5,0.98726]
[1743066090243,0.98735,2025.5,2025.4,0.9873]
[1743066090636,0.9874,2025.4,2025.3,0.98735]
[1743066091149,8.14412,2025.6,2025.2,0.98739]
[1743066091150,0.98746,2025.3,2025.2,0.98739]
[1743066091344,1.64346,2025.3,2025.2,0.98739]
[1743066092244,0.98747,2025.2,2025.1,0.98743]
[1743066093154,1.64341,2025.3,2025.2,0.98743]
[1743066093446,1.64338,2025.3,2025.2,0.98743]
[1743066094544,0.656,2025.3,2025.2,0.98743]
[1743066094751,4.19506,2025.6,2025.5,0.98729]
[1743066097662,4.19504,2025.6,2025.5,0.98729]
[1743066102960,0.99452722,2025.9,2025.8,0.98714]
[1743066103360,0.00740722,2025.9,2025.8,0.98714]
[1743066104169,0.00740722,2025.9,2025.8,41.78714]
[1743066104462,0.00740722,2025.9,2025.8,43.80714]
[1743066104657,3.2078,2026.3,2026.2,0.98695]
[1743066105158,3.2078,2026.6,2026.5,0.9868]
[1743066105468,4.19455,2026.6,2026.5,0.9868]
[1743066105668,3.2078,2026.6,2026.5,0.9868]
[1743066105969,4.19455,2026.6,2026.5,0.9868]
[1743066106169,3.2078,2026.6,2026.5,0.9868]
[1743066107167,4.19455,2026.6,2026.5,0.9868]
[1743066108456,0.98685,2026.4,2026.3,0.99430722]
[1743066108860,6.3618,2026.6,2026.5,0.9868]
[1743066109160,3.2078,2026.6,2026.5,0.9868]
[1743066109869,4.19455,2026.6,2026.5,0.9868]
[1743066110770,4.19455,2026.6,2026.3,1.30604722]
[1743066111071,4.19455,2026.6,2026.5,0.9868]
[1743066111473,0.98682,2026.5,2026.4,0.98681]
[1743066111669,4.19459,2026.6,2026.5,0.9868]
[1743066112278,0.98685,2026.4,2026.3,0.00740722]
[1743066113573,0.98685,2026.4,2026.3,0.99430722]
[1743066113768,0.98685,2026.4,2026.3,0.00740722]
[1743066114975,4.14585,2026.4,2026.3,0.00740722]
[1743066116171,6.64585,2026.4,2026.3,0.00740722]
[1743066116370,2.46746,2026.2,2025.7,0.98717]
[1743066116563,0.98714,2025.8,2025.7,0.98717]
[1743066117066,0.98714,2025.8,2025.7,41.78717]
[1743066117263,0.98713,2025.9,2025.8,0.98711]
[1743066117464,3.8692,2026.1,2026.0,0.98704]
[1743066117673,3.2078,2026.1,2026.0,0.98704]
[1743066120466,4.19479,2026.1,2026.0,0.98704]
[1743066120667,3.2078,2026.1,2026.0,0.98704]
[1743066121073,0.98699,2026.1,2026.0,0.98704]
[1743066121667,0.98697,2026.2,2026.1,0.98694]
[1743066122570,4.87908,2026.4,2026.3,0.9869]
[1743066123168,3.8922,2026.4,2026.3,0.9869]
[1743066123479,4.87905,2026.4,2026.3,0.9869]
[1743066123782,0.98698,2026.2,2026.1,0.98696]
[1743066124080,0.98694,2026.3,2026.2,0.98691]
[1743066124569,0.98699,2026.2,2026.1,0.98696]
[1743066125271,0.98694,2026.3,2026.2,0.98691]
[1743066128476,0.98698,2026.2,2026.1,0.98695]
[1743066129177,0.98694,2026.3,2026.2,0.9869]
[1743066130973,0.98699,2026.2,2026.1,0.98696]
[1743066131471,0.98704,2026.0,2025.9,4.19486]
[1743066131667,0.98704,2026.0,2025.9,4.19489]
[1743066134186,0.98704,2026.0,2025.9,5.51379]
[1743066134584,1.67804,2026.0,2025.9,5.51379]
[1743066135477,1.67804,2026.0,2025.9,4.5267]
[1743066135675,0.98719,2025.7,2025.6,0.00740722]
[1743066135979,0.98719,2025.7,2025.6,41.79464722]
[1743066136181,0.98719,2025.7,2025.6,40.80740722]
[1743066136381,2.31059,2025.7,2025.6,40.80740722]
[1743066136578,2.31059,2025.7,2025.6,41.79464722]
[1743066136785,0.98719,2025.7,2025.6,2.31354722]
[1743066137187,5.53568,2025.8,2025.7,0.98719]
[1743066137383,0.98718,2025.8,2025.7,2.40859]
[1743066137583,0.98714,2025.9,2025.8,0.98709]
[1743066137880,0.98714,2025.9,2025.8,2.40849]
[1743066140893,3.70148,2026.0,2025.9,0.98709]
[1743066141083,3.70148,2026.0,2025.9,2.29049]